bitfinex-derivatives/quotes_SOLF0:USTF0_20240823
["timestamp","ask_amount","ask_price","bid_price","bid_amount"]
[1724400805211,3.48418735,145.34,145.31,0.05016903]
[1724400805403,3.48418735,145.34,145.33,1.37596997]
[1724400805602,3.48418735,145.34,145.33,5.14105041]
[1724400807130,3.48418735,145.34,145.31,0.05016903]
[1724400807414,3.48418735,145.34,145.33,3.76654114]
[1724400807710,3.48418735,145.34,145.33,5.14253612]
[1724400808914,3.48418735,145.34,145.33,1.375978]
[1724400809113,3.48418735,145.34,145.33,5.14248505]
[1724400809614,3.48418735,145.34,145.33,1.375978]
[1724400809912,3.48418735,145.34,145.33,5.14267573]
[1724400810822,3.48418735,145.34,145.31,0.05016903]
[1724400811123,3.48418735,145.34,145.32,5.14438529]
[1724400811421,3.48418735,145.34,145.33,5.14438529]
[1724400811739,3.48418735,145.34,145.31,0.05016903]
[1724400812113,10.85,145.33,145.31,0.05016903]
[1724400813219,10.85,145.33,145.32,5.14493306]
[1724400813419,3.48408735,145.34,145.32,5.14493306]
[1724400813716,10.89408735,145.34,145.33,5.14493306]
[1724400814625,3.48408735,145.34,145.33,5.14493306]
[1724400815119,3.48408735,145.34,145.33,3.768904]
[1724400815424,0.04438735,145.34,145.33,5.14488244]
[1724400818455,0.04438735,145.34,145.33,1.37597844]
[1724400818629,3.48398735,145.34,145.33,5.14472969]
[1724400818838,3.48398735,145.34,145.33,3.76875125]
[1724400819021,3.48398735,145.34,145.33,5.14472926]
[1724400819528,3.48398735,145.34,145.33,3.76875125]
[1724400819826,3.48398735,145.34,145.33,5.14472926]
[1724400820623,0.04438735,145.34,145.33,5.14472926]
[1724400824117,0.04438735,145.34,145.33,8.58452926]
[1724400824321,3.4388,145.38,145.33,15.99452926]
[1724400824526,3.4388,145.38,145.34,5.14472926]
[1724400824722,3.4388,145.38,145.35,5.14472926]
[1724400824918,3.4388,145.38,145.36,5.14472926]
[1724400825224,3.49007252,145.38,145.37,5.14472926]
[1724400826428,0.05127252,145.38,145.37,5.14472926]
[1724400828916,0.05127252,145.38,145.37,1.37597801]
[1724400829117,0.05127252,145.38,145.37,5.14123873]
[1724400829519,0.05127252,145.38,145.37,5.14089284]
[1724400831322,3.48997252,145.38,145.37,5.14089284]
[1724400831946,3.48997252,145.38,145.36,0.04381186]
[1724400832125,3.48997252,145.38,145.37,5.14149952]
[1724400836428,3.4389,145.37,145.36,0.04381186]
[1724400836638,3.4389,145.37,145.36,5.18602926]
[1724400838942,3.4389,145.37,145.36,1.41956775]
[1724400839149,3.4389,145.37,145.36,0.04381186]
[1724400839439,3.4389,145.37,145.36,5.18639304]
[1724400841339,3.4389,145.37,145.36,5.18670064]
[1724400841937,3.4389,145.37,145.36,5.18670164]
[1724400843040,3.4389,145.37,145.36,5.18670177]
[1724400844137,3.49007252,145.38,145.36,5.18670177]
[1724400844438,3.49007252,145.38,145.36,0.04381186]
[1724400845435,3.49007252,145.38,145.37,5.14198049]
[1724400846241,3.49007252,145.38,145.36,0.04381186]
[1724400852246,3.4389,145.37,145.36,0.04381186]
[1724400852445,3.4389,145.37,145.36,5.1859938]
[1724400856150,3.4389,145.37,145.36,5.18609106]
[1724400857541,3.4389,145.37,145.36,0.04381186]
[1724400866059,3.4389,145.37,145.36,5.18669945]
[1724400867056,3.4389,145.37,145.36,1.4195559]
[1724400867260,3.4389,145.37,145.36,0.04381186]
[1724400867657,7.41,145.37,145.28,2.6075]
[1724400867863,7.41,145.34,145.29,12.55413272]
[1724400868161,3.4393,145.36,145.32,7.41]
[1724400868361,3.4393,145.36,145.33,5.14413272]
[1724400868661,3.4847354,145.36,145.34,1.37582484]
[1724400868862,3.4847354,145.36,145.34,5.14364321]
[1724400869061,3.4847354,145.36,145.35,5.14361761]
[1724400869752,3.4847354,145.36,145.35,1.37582484]
[1724400870157,3.4847354,145.36,145.35,5.14352227]
[1724400872987,3.4847354,145.36,145.35,3.76769743]
[1724400873365,3.4847354,145.36,145.35,5.14350014]
[1724400873552,3.4847354,145.36,145.35,3.76769743]
[1724400873758,3.4847354,145.36,145.35,5.14350872]
[1724400874371,3.4394,145.35,145.33,0.0524241]
[1724400874566,3.4394,145.35,145.34,5.14385491]
[1724400875762,3.4394,145.35,145.33,0.0524241]
[1724400875968,3.4394,145.35,145.34,3.76780351]
[1724400876170,3.4394,145.35,145.34,5.14361906]
[1724400879180,3.4394,145.35,145.34,3.76780351]
[1724400879763,3.4394,145.35,145.34,8.91161792]
[1724400879962,3.4394,145.35,145.34,5.14381441]
[1724400882281,3.4846354,145.36,145.34,5.14381441]
[1724400882575,3.4846354,145.36,145.35,3.76797601]
[1724400882871,3.4846354,145.36,145.35,5.14354674]
[1724400886276,3.4846354,145.36,145.33,0.0524241]
[1724400886476,3.4846354,145.36,145.35,3.7677901]
[1724400886778,3.4846354,145.36,145.35,5.14360025]
[1724400889790,3.4846354,145.36,145.33,0.0524241]
[1724400889978,3.4846354,145.36,145.35,3.76529645]
[1724400890190,3.4846354,145.36,145.35,1.37581015]
[1724400890583,3.4846354,145.36,145.35,5.14112393]
[1724400893223,3.4846354,145.36,145.33,0.0524241]
[1724400893391,3.4846354,145.36,145.34,3.76531377]
[1724400893589,3.4846354,145.36,145.35,5.14112392]
[1724400900397,3.4846354,145.36,145.33,0.0524241]
[1724400900594,3.4846354,145.36,145.35,5.14110346]
[1724400901291,3.4846354,145.36,145.35,5.14115699]
[1724400902890,3.4846354,145.36,145.35,3.7651156]
[1724400903089,3.4846354,145.36,145.35,5.14089703]
[1724400903294,3.4846354,145.36,145.35,3.7651156]
[1724400903500,3.4846354,145.36,145.35,5.14089703]
[1724400905894,3.4846354,145.36,145.35,3.7645179]
[1724400906097,3.4846354,145.36,145.35,5.14026936]
[1724400909400,3.4846354,145.36,145.35,5.14018998]
[1724400909709,3.4846354,145.36,145.35,3.76443751]
[1724400909892,3.4846354,145.36,145.35,5.14018998]
[1724400912714,3.4846354,145.36,145.35,1.3757453]
[1724400912906,3.4846354,145.36,145.35,5.14017521]
[1724400913103,3.4846354,145.36,145.35,6.51592082]
[1724400913402,3.4846354,145.36,145.35,5.14017552]
[1724400919602,3.4846354,145.36,145.35,1.37581071]
[1724400919811,3.4846354,145.36,145.35,5.13962388]
[1724400920109,3.4846354,145.36,145.35,5.13920415]
[1724400923109,3.4846354,145.36,145.35,5.13958794]
[1724400926602,3.4846354,145.36,145.33,0.0524241]
[1724400926603,3.4394,145.35,145.33,0.0524241]
[1724400926807,3.4394,145.35,145.34,1.37581059]
[1724400926998,3.4394,145.35,145.34,5.13981443]
[1724400927902,3.4846354,145.36,145.34,5.13981443]
[1724400928104,3.4846354,145.36,145.35,5.13981443]
[1724400933314,3.4846354,145.36,145.33,0.0524241]
[1724400933510,3.4846354,145.36,145.35,3.76325273]
[1724400933812,3.4846354,145.36,145.35,5.13905408]
[1724400934509,10.8946354,145.36,145.35,5.13905408]
[1724400940822,10.8946354,145.36,145.33,0.0524241]
[1724400940823,3.4396,145.34,145.33,0.0524241]
[1724400941039,10.8496,145.34,145.33,3.8171722]
[1724400941217,10.8496,145.34,145.33,1.42836629]
[1724400941518,10.8496,145.34,145.33,5.19311439]
[1724400942022,10.8496,145.34,145.33,6.5690569]
[1724400944126,10.8496,145.34,145.33,1.42836629]
[1724400944426,10.8496,145.34,145.33,2.80431481]
[1724400944721,10.8496,145.34,145.33,6.56919718]
[1724400945626,10.8496,145.34,145.33,5.19325499]
[1724400947325,10.8496,145.34,145.33,3.81730647]
[1724400947524,10.8496,145.34,145.33,0.0524241]
[1724400947721,10.8496,145.34,145.33,5.19363513]
[1724400951043,10.8496,145.34,145.33,0.0524241]
[1724400951224,10.8496,145.34,145.33,1.42843979]
[1724400951435,10.8496,145.34,145.33,5.19276577]
[1724400952626,10.8496,145.34,145.33,5.19275961]
[1724400954731,10.8496,145.34,145.33,1.42843363]
[1724400954930,10.8496,145.34,145.33,5.19278076]
[1724400961141,10.8496,145.34,145.33,0.0524241]
[1724400961436,10.8496,145.34,145.33,5.19223657]
[1724400961437,3.4396,145.34,145.33,5.19223657]
[1724400963136,3.4395,145.35,145.33,12.60223657]
[1724400963325,3.4395,145.35,145.34,5.13981247]
[1724400964645,3.4395,145.35,145.34,3.76379577]
[1724400965135,3.4395,145.35,145.34,5.13961393]
[1724400965435,0.0454354,145.36,145.34,12.54961393]
[1724400965625,143.44035556,145.37,145.35,5.13961393]
[1724400965830,143.44035556,145.37,145.36,5.13961393]
[1724400967528,146.87925556,145.37,145.36,5.13961393]
[1724400968446,146.87925556,145.37,145.34,10.1387]
[1724400968636,146.87925556,145.37,145.36,5.13614091]
[1724400972353,146.87925556,145.37,145.34,11.4625]
[1724400972533,146.87925556,145.37,145.36,3.76058172]
[1724400972730,146.87925556,145.37,145.36,5.13637465]
[1724400973742,146.87925556,145.37,145.36,3.76058172]
[1724400973943,146.87925556,145.37,145.36,5.13637659]
[1724400979562,146.87925556,145.37,145.34,11.4625]
[1724400979742,146.87925556,145.37,145.36,1.37579348]
[1724400979943,146.87925556,145.37,145.36,5.13637962]
[1724400982256,143.44035556,145.37,145.36,5.13637962]
[1724400982555,0.04729316,145.38,145.36,12.54637962]
[1724400982743,0.04729316,145.38,145.37,5.13637962]
[1724400982956,0.04729316,145.38,145.36,7.41]
[1724400982957,0.04729316,145.38,145.36,7.45672531]
[1724400983150,0.04729316,145.38,145.37,5.13563345]
[1724400983653,3.48599316,145.38,145.37,5.13563345]
[1724400984049,3.48599316,145.38,145.37,1.37569239]
[1724400984257,3.48599316,145.38,145.37,5.13573319]
[1724400984955,3.48599316,145.38,145.37,3.7600408]
[1724400985153,3.48599316,145.38,145.37,5.13571982]
[1724400986258,3.4389,145.37,145.36,0.04672531]
[1724400986457,3.4389,145.37,145.36,5.1829576]
[1724400993467,3.4389,145.37,145.36,1.42246065]
[1724400993760,3.4389,145.37,145.36,5.18268736]
[1724400993961,3.4389,145.37,145.36,1.42247766]
[1724400994261,3.4389,145.37,145.36,0.04672531]
[1724400994557,10.8489,145.37,145.36,0.04672531]
[1724400999962,3.4389,145.37,145.36,0.04672531]
[1724401010969,10.8489,145.37,145.36,0.04672531]
[1724401014475,3.4389,145.37,145.36,0.04672531]
[1724401014673,0.04729316,145.38,145.36,0.04672531]
[1724401015968,0.04729316,145.38,145.37,5.13361887]
[1724401022970,0.04729316,145.38,145.37,2.75134286]
[1724401023171,0.04729316,145.38,145.37,1.37566914]
[1724401023683,0.04729316,145.38,145.37,5.13334258]
[1724401023884,0.04729316,145.38,145.37,8.8910494]
[1724401024078,0.04729316,145.38,145.37,3.75770682]
[1724401024279,0.04729316,145.38,145.37,5.13337666]
[1724401025679,0.04729316,145.38,145.37,1.37566984]
[1724401025983,0.04729316,145.38,145.37,5.13165922]
[1724401027285,0.04729316,145.38,145.37,12.54165922]
[1724401027878,3.4383,145.4,145.37,12.54165922]
[1724401028079,3.4383,145.4,145.38,5.13165922]
[1724401028280,3.4383,145.4,145.39,1.37566984]
[1724401028486,3.4383,145.4,145.37,7.41]
[1724401028782,3.4383,145.4,145.38,5.13072585]
[1724401028985,3.49029008,145.4,145.39,1.37554974]
[1724401029389,3.49029008,145.4,145.37,7.41]
[1724401029589,3.49029008,145.4,145.38,5.13071474]
[1724401029789,3.49029008,145.4,145.37,7.41]
[1724401029987,3.49029008,145.4,145.38,5.13094699]
[1724401030185,3.4384,145.39,145.37,7.41]
[1724401030386,3.4384,145.39,145.38,5.13123288]
[1724401032095,3.4384,145.39,145.37,7.41]
[1724401032293,3.4384,145.39,145.38,3.75634717]
[1724401032493,3.4384,145.39,145.38,5.13189309]
[1724401032690,3.49029008,145.4,145.38,5.13189309]
[1724401032889,3.49029008,145.4,145.39,5.13189309]
[1724401033289,3.49029008,145.4,145.37,7.41]
[1724401033497,3.49029008,145.4,145.38,5.1319081]
[1724401033788,3.438,145.41,145.39,8.78554492]
[1724401034085,3.438,145.41,145.39,7.41]
[1724401034287,3.4378,145.42,145.39,7.41]
[1724401034792,3.48465105,145.42,145.39,7.45872079]
[1724401036693,3.48465105,145.42,145.39,0.04872079]
[1724401038796,3.48465105,145.42,145.41,7.41]
[1724401038797,0.04685105,145.42,145.41,7.41]
[1724401039094,0.04685105,145.42,145.41,11.16508822]
[1724401039291,0.04685105,145.42,145.41,7.41]
[1724401039481,0.04685105,145.42,145.41,12.53921116]
[1724401041497,0.04685105,145.42,145.41,7.41]
[1724401044907,0.04685105,145.42,145.41,12.53799429]
[1724401045206,0.04685105,145.42,145.41,7.41]
[1724401045392,0.04685105,145.42,145.41,8.78514938]
[1724401045598,0.04685105,145.42,145.41,12.53774904]
[1724401045799,197.66059917,145.47,145.41,12.53774904]
[1724401046010,132.44747679,145.47,145.42,7.41]
[1724401046910,3.4372,145.45,145.43,0.04894547]
[1724401047808,3.48916373,145.46,145.44,7.41]
[1724401049812,3.437,145.45,145.43,0.04894547]
[1724401050216,0.05236373,145.46,145.43,0.04894547]
[1724401050415,3.4371,145.45,145.43,0.04894547]
[1724401051313,3.4372,145.44,145.43,0.04894547]
[1724401058222,3.4372,145.44,145.43,7.45894547]
[1724401059920,3.4372,145.44,145.43,0.04894547]
[1724401060524,3.4372,145.44,145.43,0.04894547]
[1724401069224,3.4372,145.44,145.43,7.45894547]
[1724401072431,3.4372,145.45,145.43,7.45894547]
[1724401072625,3.4372,145.45,145.44,7.41]
[1724401075024,3.4372,145.45,145.43,7.45894547]
[1724401075229,3.437,145.45,145.43,0.04894547]
[1724401075432,0.05236373,145.46,145.43,0.04894547]
[1724401075833,3.4371,145.45,145.43,0.04894547]
[1724401077938,3.4372,145.44,145.43,0.04894547]
[1724401081637,3.4372,145.44,145.43,7.45894547]
[1724401083743,0.05236373,145.46,145.43,7.45894547]
[1724401083937,0.05236373,145.46,145.45,7.41]
[1724401085131,0.05236373,145.46,145.44,7.41]
[1724401085337,0.05236373,145.46,145.45,7.41]
[1724401088939,3.4363,145.48,145.45,7.41]
[1724401089144,3.4363,145.48,145.47,7.41]
[1724401091544,3.4363,145.48,145.46,0.05114957]
[1724401091745,0.04893916,145.49,145.46,0.05114957]
[1724401092558,3.4365,145.48,145.46,0.05114957]
[1724401093846,3.4365,145.47,145.46,0.05114957]
[1724401094841,3.4364,145.48,145.46,0.05114957]
[1724401095040,3.4364,145.48,145.47,7.41]
[1724401096351,0.04893916,145.49,145.47,7.41]
[1724401097353,3.4363,145.48,145.47,7.41]
[1724401097558,0.04893916,145.49,145.46,0.05114957]
[1724401098253,3.4365,145.48,145.47,7.41]
[1724401098454,0.04893916,145.49,145.47,7.41]
[1724401098853,3.48513916,145.49,145.47,7.41]
[1724401099562,3.4363,145.48,145.47,7.41]
[1724401100252,3.4365,145.47,145.46,0.05114957]
[1724401100647,0.04893916,145.49,145.46,7.46114957]
[1724401100848,3.4365,145.48,145.46,7.46114957]
[1724401103056,3.4365,145.47,145.46,7.46114957]
[1724401103651,3.4365,145.47,145.46,0.05114957]
[1724401106558,3.4365,145.47,145.46,1.42592778]
[1724401106952,3.4365,145.47,145.46,8.83592778]
[1724401107154,3.4365,145.47,145.46,12.58667969]
[1724401108561,3.4364,145.48,145.46,12.58667969]
[1724401108775,3.4364,145.48,145.47,7.41]
[1724401111462,3.4364,145.48,145.47,8.78472317]
[1724401112570,3.4364,145.48,145.47,12.53564837]
[1724401114076,3.4364,145.48,145.47,7.41]
[1724401114366,3.4364,145.48,145.47,12.53539216]
[1724401114865,3.4364,145.48,145.47,5.12539216]
[1724401115158,3.4364,145.48,145.47,12.53539216]
[1724401115556,3.4364,145.48,145.47,7.41]
[1724401115757,3.4364,145.48,145.47,12.5355148]
[1724401116862,3.4364,145.48,145.47,5.1255148]
[1724401117059,3.4364,145.48,145.47,1.37469486]
[1724401117254,3.4364,145.48,145.47,5.12558619]
[1724401118259,3.4364,145.48,145.47,5.12558722]
[1724401118963,3.4364,145.48,145.47,3.75223616]
[1724401119160,3.4364,145.48,145.47,5.12693205]
[1724401119364,3.4364,145.48,145.47,5.12704805]
[1724401120254,3.4364,145.48,145.47,1.37469561]
[1724401120462,3.4364,145.48,145.47,5.12689247]
[1724401121066,3.4365,145.47,145.46,0.05114957]
[1724401121269,7.41,145.48,145.41,1.93461175]
[1724401121464,7.41,145.45,145.42,5.12974477]
[1724401121664,3.4372,145.44,145.43,5.12974477]
[1724401122468,3.4375,145.43,145.42,0.04952202]
[1724401122766,3.4375,145.43,145.42,3.80166166]
[1724401123160,3.4375,145.43,145.42,5.17673612]
[1724401125690,3.4375,145.43,145.42,0.04952202]
[1724401125866,3.4375,145.43,145.42,5.17686414]
[1724401129166,3.4375,145.43,145.42,1.42459648]
[1724401129591,10.8475,145.43,145.42,1.42459648]
[1724401129872,10.8475,145.43,145.42,0.04952202]
[1724401130074,3.4375,145.43,145.42,0.04952202]
[1724401130273,3.4375,145.43,145.42,3.80178968]
[1724401135172,3.4375,145.43,145.42,11.21178968]
[1724401135367,3.4375,145.43,145.42,16.33948009]
[1724401135798,3.4375,145.43,145.42,14.96439588]
[1724401135971,3.4375,145.43,145.42,16.33947982]
[1724401137180,3.4375,145.43,145.42,12.58721216]
[1724401137576,3.4375,145.43,145.42,7.45952202]
[1724401137778,3.4375,145.43,145.42,12.58718676]
[1724401139475,3.4375,145.43,145.42,5.17718676]
[1724401139776,3.4375,145.43,145.42,1.42460634]
[1724401140075,3.4375,145.43,145.42,0.04952202]
[1724401198617,3.4388,145.38,145.35,1.2901]
[1724401198821,3.4388,145.38,145.36,5.12749466]
[1724401199025,3.4388,145.38,145.37,5.12749466]
[1724401199327,3.4388,145.38,145.37,5.12752136]
[1724401201619,3.49006639,145.39,145.37,5.12752136]
[1724401201823,3.49006639,145.39,145.38,5.12741156]
[1724401202425,0.05156639,145.39,145.38,5.12741156]
[1724401202630,3.4383,145.4,145.38,5.12741156]
[1724401202837,3.4383,145.4,145.36,0.04923357]
[1724401203134,3.4383,145.4,145.37,5.12598945]
[1724401203431,3.4383,145.4,145.38,5.12598945]
[1724401203629,3.4383,145.4,145.36,0.04923357]
[1724401203829,3.4384,145.39,145.37,5.12577931]
[1724401204130,3.4384,145.39,145.38,5.12577931]
[1724401204628,0.04680312,145.4,145.38,1.37548055]
[1724401204831,0.04680312,145.4,145.36,0.04923357]
[1724401205035,0.04680312,145.4,145.37,5.12559273]
[1724401205334,3.4384,145.39,145.38,5.12559273]
[1724401205541,3.49366228,145.45,145.38,5.12559273]
[1724401205834,20.63,145.49,145.39,6.46599273]
[1724401206065,1.26356787,145.48,145.4,5.12559273]
[1724401206329,1.26356787,145.48,145.39,1.3404]
[1724401206631,3.4379,145.42,145.4,5.12402894]
[1724401206832,3.4379,145.42,145.4,0.04974312]
[1724401207835,3.4379,145.42,145.41,1.37527471]
[1724401208032,3.4379,145.42,145.4,0.04974312]
[1724401209736,3.44199078,145.44,145.4,0.04974312]
[1724401210438,3.4378,145.42,145.4,0.04974312]
[1724401214139,3.438,145.41,145.4,0.04974312]
[1724401214341,3.438,145.41,145.4,5.1737329]
[1724401216960,3.438,145.41,145.4,0.04974312]
[1724401217239,3.438,145.41,145.4,5.17375395]
[1724401220447,3.48750946,145.42,145.4,5.17376077]
[1724401220636,3.48750946,145.42,145.41,1.37528379]
[1724401223541,3.48750946,145.42,145.4,0.04974312]
[1724401223742,3.48750946,145.42,145.41,1.37528241]
[1724401224239,3.48750946,145.42,145.41,5.12432118]
[1724401225548,3.48750946,145.42,145.41,1.37528241]
[1724401225844,3.48750946,145.42,145.41,5.12430728]
[1724401226951,3.48750946,145.42,145.41,5.12421419]
[1724401227949,0.04970946,145.42,145.41,5.12421419]
[1724401230178,0.04970946,145.42,145.4,0.04974312]
[1724401230346,0.04970946,145.42,145.41,1.37526262]
[1724401230547,0.04970946,145.42,145.41,5.12389479]
[1724401230746,0.04970946,145.42,145.41,5.12392333]
[1724401234473,0.04970946,145.42,145.4,0.04974312]
[1724401234651,0.04970946,145.42,145.41,1.3752646]
[1724401234846,0.04970946,145.42,145.41,5.12391474]
[1724401236156,0.04970946,145.42,145.41,1.3752646]
[1724401236352,0.04970946,145.42,145.41,5.12409425]
[1724401237083,0.04970946,145.42,145.4,0.04974312]
[1724401237357,0.04970946,145.42,145.41,1.37527264]
[1724401237553,0.04970946,145.42,145.41,5.12423251]
[1724401237851,0.04970946,145.42,145.41,8.87321564]
[1724401238055,0.04970946,145.42,145.41,5.12425705]
[1724401240057,3.48740946,145.42,145.41,5.12425705]
[1724401240452,3.48740946,145.42,145.41,1.37527392]
[1724401240652,3.48740946,145.42,145.41,6.49949237]
[1724401240952,3.48740946,145.42,145.41,5.12421845]
[1724401241753,3.48740946,145.42,145.4,0.04974312]
[1724401241964,3.48740946,145.42,145.41,5.12413865]
[1724401243677,3.48740946,145.42,145.4,0.04974312]
[1724401243855,3.48740946,145.42,145.41,5.1242035]
[1724401247478,3.48740946,145.42,145.4,0.04974312]
[1724401247661,3.48740946,145.42,145.41,5.12422562]
[1724401248360,3.48740946,145.42,145.41,1.37527392]
[1724401248759,3.48740946,145.42,145.41,5.12422562]
[1724401250579,3.48740946,145.42,145.41,3.7489517]
[1724401250757,3.48740946,145.42,145.41,5.12422589]
[1724401254164,3.48740946,145.42,145.41,1.37527392]
[1724401254767,3.48740946,145.42,145.41,5.12400562]
[1724401257402,3.48740946,145.42,145.41,1.37527392]
[1724401257685,0.04970946,145.42,145.41,5.12397529]
[1724401258080,0.04970946,145.42,145.41,5.12325486]
[1724401259278,0.04970946,145.42,145.41,3.74798094]
[1724401259583,0.04970946,145.42,145.41,5.12306543]
[1724401260618,0.04970946,145.42,145.4,0.04974312]
[1724401260784,0.04970946,145.42,145.41,5.12217744]
[1724401261587,0.04970946,145.42,145.41,1.37508577]
[1724401261885,0.04970946,145.42,145.41,5.12240438]
[1724401262187,3.48740946,145.42,145.41,5.12240438]
[1724401262391,0.04970946,145.42,145.41,5.12240438]
[1724401266883,0.04970946,145.42,145.41,1.37508577]
[1724401267087,0.04970946,145.42,145.41,5.12275391]
[1724401267990,0.04970946,145.42,145.41,6.40705391]
[1724401269387,3.4373,145.44,145.41,6.40705391]
[1724401269584,68.53071725,145.49,145.42,5.12275391]
[1724401269789,68.53071725,145.49,145.41,1.2843]
[1724401269790,68.53071725,145.49,145.41,4.76280663]
[1724401269983,68.53071725,145.49,145.43,3.74795248]
[1724401270190,68.53071725,145.49,145.44,5.12300528]
[1724401270495,0.0421208,145.48,145.45,0.04732394]
[1724401271392,3.4369,145.46,145.45,0.04732394]
[1724401271687,3.4369,145.46,145.45,5.16840656]
[1724401276597,3.4369,145.46,145.45,3.7934914]
[1724401276789,3.4369,145.46,145.45,5.16840672]
[1724401277087,3.4369,145.46,145.45,1.42223926]
[1724401280300,3.4369,145.46,145.45,0.04732394]
[1724401281799,2.06357,145.47,145.28,3.18377963]
[1724401281993,92.52385584,145.49,145.37,1.348]
[1724401282295,3.4376,145.43,145.38,5.12343447]
[1724401282501,3.4376,145.43,145.39,5.12343447]
[1724401282693,3.4376,145.43,145.4,5.168654]
[1724401282694,0.04860597,145.42,145.4,5.168654]
[1724401282889,0.04860597,145.42,145.41,5.12343447]
[1724401283620,0.04860597,145.42,145.41,3.74826278]
[1724401283794,0.04860597,145.42,145.41,5.12381711]
[1724401287307,0.04860597,145.42,145.4,0.04521953]
[1724401287496,0.04860597,145.42,145.41,6.49818125]
[1724401287801,0.04860597,145.42,145.41,3.74794111]
[1724401288002,0.04860597,145.42,145.41,5.12308979]
[1724401290633,0.04860597,145.42,145.41,3.74794111]
[1724401290793,0.04860597,145.42,145.41,1.37514164]
[1724401291001,0.04860597,145.42,145.41,5.12333514]
[1724401294306,0.04860597,145.42,145.4,0.04521953]
[1724401294712,0.04860597,145.42,145.41,1.37514063]
[1724401295014,0.04860597,145.42,145.41,5.12333047]
[1724401295612,3.48630597,145.42,145.41,5.12333047]
[1724401296313,3.48630597,145.42,145.41,1.37514063]
[1724401296511,3.48630597,145.42,145.41,5.12301975]
[1724401297913,3.48630597,145.42,145.4,0.04521953]
[1724401298218,3.48630597,145.42,145.41,5.12319668]
[1724401298909,3.48630597,145.42,145.41,1.37511198]
[1724401299409,3.4379,145.41,145.4,0.04521953]
[1724401299616,3.4379,145.41,145.4,5.17045853]
[1724401301136,3.4379,145.41,145.4,0.04521953]
[1724401301416,3.4379,145.41,145.4,5.17040885]
[1724401304620,3.4379,145.41,145.4,0.04521953]
[1724401304809,3.4379,145.41,145.4,3.79523068]
[1724401305119,3.4379,145.41,145.4,5.17051105]
[1724401305621,3.4379,145.41,145.4,3.79523068]
[1724401305920,3.4379,145.41,145.4,5.17051105]
[1724401308112,3.4379,145.41,145.4,0.04521953]
[1724401308313,3.4379,145.41,145.4,5.17060613]
[1724401309627,6.90419422,145.41,145.4,5.17060613]
[1724401310120,8.16739422,145.41,145.4,0.04521953]
[1724401310623,3.4387,145.38,145.33,3.4398]
[1724401310815,3.4387,145.38,145.34,5.12791965]
[1724401311016,3.4387,145.38,145.35,5.12791965]
[1724401311219,3.4387,145.38,145.36,5.12791965]
[1724401311446,3.4387,145.38,145.37,5.12791965]
[1724401311621,3.4387,145.38,145.37,1.37548788]
[1724401311925,3.4387,145.38,145.37,5.12813472]
[1724401315017,3.4387,145.38,145.36,0.04939287]
[1724401315220,3.4387,145.38,145.37,5.1280144]
[1724401318634,3.4387,145.38,145.36,0.04939287]
[1724401318824,3.4387,145.38,145.37,1.37549691]
[1724401319223,3.4387,145.38,145.37,1.37548903]
[1724401319542,3.4387,145.38,145.36,0.04939287]
[1724401319731,3.4387,145.38,145.37,5.12850978]
[1724401320028,3.4387,145.38,145.37,1.37548255]
[1724401320330,3.4387,145.38,145.37,5.1283317]
[1724401320534,3.4387,145.38,145.37,1.37548255]
[1724401322136,3.49123793,145.39,145.37,1.37548255]
[1724401322335,3.49123793,145.39,145.36,0.04939287]
[1724401322541,3.49123793,145.39,145.37,1.37548856]
[1724401322741,3.49123793,145.39,145.36,0.04939287]
[1724401322941,3.49123793,145.39,145.37,5.12817995]
[1724401323146,3.49123793,145.39,145.36,0.04939287]
[1724401323331,3.49123793,145.39,145.37,1.37546304]
[1724401323536,3.49123793,145.39,145.36,0.04939287]
[1724401323737,3.49123793,145.39,145.37,1.37546245]
[1724401323937,3.49123793,145.39,145.36,0.04939287]
[1724401324140,3.49123793,145.39,145.37,1.37549143]
[1724401324337,3.49123793,145.39,145.36,0.04939287]
[1724401324535,3.49123793,145.39,145.37,1.3754589]
[1724401324743,3.49123793,145.39,145.36,0.04939287]
[1724401325044,3.49123793,145.39,145.37,1.37545906]
[1724401325241,3.49123793,145.39,145.36,0.04939287]
[1724401325443,3.4387,145.38,145.37,1.37545934]
[1724401326945,3.4387,145.38,145.36,0.04939287]
[1724401327645,3.4389,145.37,145.36,0.04939287]
[1724401328038,3.4389,145.37,145.36,3.8020686]
[1724401328343,3.4389,145.37,145.36,5.17755825]
[1724401328645,3.4389,145.37,145.36,0.04939287]
[1724401328848,3.4389,145.37,145.36,3.80207823]
[1724401329639,3.4389,145.37,145.36,5.17756655]
[1724401331481,3.4389,145.37,145.36,3.80207823]
[1724401331639,3.4389,145.37,145.36,1.42487991]
[1724401331837,3.4389,145.37,145.36,5.17757495]